[Event "Championnat d'Europe de Blitz"]
[Date "2024.12.09"]
[White "Janik, Igor"]
[Black "Reprintsev, Alexander"]
[WhiteElo "2515"]
[BlackElo "2230"]
[Round "8.38"]
[Result "1/2-1/2"]
[TimeControl "180+2"]

1. e4 {[%clk 00:03:03]} d5 {[%emt 00:00:01] [%clk 00:03:03]} 2. exd5 {[%emt
00:00:02] [%clk 00:03:03]} Qxd5 {[%clk 00:03:05]} 3. Nf3 {[%emt 00:00:01] [%clk
00:03:04]} Bg4 {[%emt 00:00:01] [%clk 00:03:05]} 4. Be2 {[%clk 00:03:05]} Nc6
{[%clk 00:03:06]} 5. h3 {[%clk 00:03:06]} Bxf3 {[%emt 00:00:02] [%clk 00:03:07]}
6. Bxf3 {[%clk 00:03:07]} Qe6+ {[%emt 00:00:01] [%clk 00:03:08]} 7. Kf1 {[%emt
00:00:02] [%clk 00:03:07]} O-O-O {[%emt 00:00:06] [%clk 00:03:04]} 8. d3 {[%clk
00:03:08]} h5 {[%emt 00:00:09] [%clk 00:02:56]} 9. Nc3 {[%emt 00:00:02] [%clk
00:03:08]} Nf6 {[%emt 00:00:05] [%clk 00:02:54]} 10. Be3 {[%emt 00:00:04] [%clk
00:03:06]} a6 {[%emt 00:00:02] [%clk 00:02:54]} 11. Qe2 {[%emt 00:00:02] [%clk
00:03:06]} g5 {[%emt 00:00:08] [%clk 00:02:48]} 12. Bxg5 {[%emt 00:00:08] [%clk
00:03:00]} Qf5 {[%emt 00:00:10] [%clk 00:02:41]} 13. Bxf6 {[%emt 00:00:03] [%clk
00:02:58]} Qxf6 {[%emt 00:00:02] [%clk 00:02:41]} 14. Re1 {[%emt 00:00:06] [%clk
00:02:55]} Nd4 {[%emt 00:00:10] [%clk 00:02:33]} 15. Qe4 {[%clk 00:02:56]} Nxf3
{[%emt 00:00:03] [%clk 00:02:31]} 16. Qxf3 {[%emt 00:00:01] [%clk 00:02:57]}
Qxf3 {[%emt 00:00:02] [%clk 00:02:32]} 17. gxf3 {[%clk 00:02:57]} e6 {[%emt
00:00:02] [%clk 00:02:33]} 18. Rg1 {[%emt 00:00:01] [%clk 00:02:57]} Bb4 {[%emt
00:00:09] [%clk 00:02:26]} 19. Rg7 {[%emt 00:00:03] [%clk 00:02:56]} Rd7 {[%emt
00:00:07] [%clk 00:02:22]} 20. Ke2 {[%emt 00:00:05] [%clk 00:02:53]} f5 {[%emt
00:00:13] [%clk 00:02:11]} 21. Reg1 {[%emt 00:00:05] [%clk 00:02:49]} Bxc3
{[%emt 00:00:03] [%clk 00:02:11]} 22. bxc3 {[%emt 00:00:01] [%clk 00:02:50]} e5
{[%emt 00:00:08] [%clk 00:02:05]} 23. Rg8+ {[%emt 00:00:05] [%clk 00:02:48]} Rd8
{[%emt 00:00:03] [%clk 00:02:04]} 24. Rxh8 {[%emt 00:00:01] [%clk 00:02:49]}
Rxh8 {[%emt 00:00:01] [%clk 00:02:05]} 25. Rg5 {[%clk 00:02:50]} Kd7 {[%emt
00:00:03] [%clk 00:02:05]} 26. Rxf5 {[%emt 00:00:01] [%clk 00:02:50]} Ke6 {[%clk
00:02:06]} 27. Rg5 {[%clk 00:02:52]} b5 {[%emt 00:00:02] [%clk 00:02:06]} 28. f4
{[%emt 00:00:03] [%clk 00:02:51]} exf4 {[%emt 00:00:02] [%clk 00:02:05]} 29. Kf3
{[%clk 00:02:52]} c6 {[%emt 00:00:05] [%clk 00:02:03]} 30. Kxf4 {[%emt 00:00:02]
[%clk 00:02:51]} h4 {[%emt 00:00:03] [%clk 00:02:02]} 31. Ke4 {[%emt 00:00:02]
[%clk 00:02:52]} a5 {[%emt 00:00:01] [%clk 00:02:02]} 32. Rg6+ {[%emt 00:00:02]
[%clk 00:02:52]} Kd7 {[%clk 00:02:03]} 33. f4 {[%clk 00:02:53]} Re8+ {[%clk
00:02:05]} 34. Kf3 {[%emt 00:00:09] [%clk 00:02:46]} Re1 {[%emt 00:00:02] [%clk
00:02:05]} 35. Rg2 {[%emt 00:00:01] [%clk 00:02:47]} Ra1 {[%emt 00:00:04] [%clk
00:02:04]} 36. Rg7+ {[%emt 00:00:08] [%clk 00:02:41]} Kd6 {[%clk 00:02:05]} 37.
Ra7 {[%emt 00:00:14] [%clk 00:02:28]} Rxa2 {[%emt 00:00:02] [%clk 00:02:05]} 38.
f5 {[%emt 00:00:02] [%clk 00:02:28]} Ke5 {[%emt 00:00:08] [%clk 00:01:59]} 39.
Kg4 {[%clk 00:02:30]} Rxc2 {[%emt 00:00:01] [%clk 00:01:59]} 40. Re7+ {[%emt
00:00:05] [%clk 00:02:27]} Kd6 {[%emt 00:00:01] [%clk 00:01:59]} 41. Re1 {[%emt
00:00:09] [%clk 00:02:21]} Rf2 {[%emt 00:00:12] [%clk 00:01:49]} 42. Kg5 {[%emt
00:00:03] [%clk 00:02:19]} c5 {[%emt 00:00:01] [%clk 00:01:51]} 43. f6 {[%clk
00:02:20]} b4 {[%emt 00:00:01] [%clk 00:01:52]} 44. cxb4 {[%emt 00:00:18] [%clk
00:02:03]} cxb4 {[%clk 00:01:53]} 45. Ra1 {[%emt 00:00:01] [%clk 00:02:05]} Ke6
{[%emt 00:00:08] [%clk 00:01:46]} 46. Rxa5 {[%emt 00:00:02] [%clk 00:02:05]}
Rg2+ {[%clk 00:01:47]} 47. Kxh4 {[%emt 00:00:05] [%clk 00:02:02]} Kxf6 {[%emt
00:00:01] [%clk 00:01:48]} 48. Rb5 {[%clk 00:02:03]} Rd2 {[%emt 00:00:05] [%clk
00:01:45]} 49. Rxb4 {[%emt 00:00:02] [%clk 00:02:03]} Rxd3 {[%clk 00:01:46]} 50.
Kg4 {[%emt 00:00:02] [%clk 00:02:04]} Kg7 {[%emt 00:00:04] [%clk 00:01:44]} 51.
h4 {[%emt 00:00:02] [%clk 00:02:04]} Rd5 {[%clk 00:01:45]} 52. Rb6 {[%emt
00:00:02] [%clk 00:02:05]} Ra5 {[%clk 00:01:46]} 53. Rb4 {[%emt 00:00:02] [%clk
00:02:05]} Ra8 {[%emt 00:00:05] [%clk 00:01:40]} 1/2-1/2

[Site "Europe Echecs"]

[Event "Championnat d'Europe de Blitz"]
[Date "2024.12.09"]
[White "Kusiak, Matej"]
[Black "Georgiev, Kiril"]
[WhiteElo "2227"]
[BlackElo "2537"]
[Round "8.39"]
[Result "0-1"]
[TimeControl "180+2"]

1. e4 {[%emt 00:00:01] [%clk 00:03:02]} c5 {[%emt 00:00:07] [%clk 00:02:57]} 2.
Nf3 {[%emt 00:00:02] [%clk 00:03:03]} e6 {[%clk 00:02:58]} 3. Nc3 {[%emt
00:00:03] [%clk 00:03:02]} a6 {[%emt 00:00:02] [%clk 00:02:59]} 4. g3 {[%emt
00:00:01] [%clk 00:03:02]} b5 {[%emt 00:00:04] [%clk 00:02:57]} 5. Bg2 {[%emt
00:00:08] [%clk 00:02:56]} Bb7 {[%emt 00:00:01] [%clk 00:02:57]} 6. d3 {[%emt
00:00:11] [%clk 00:02:47]} d6 {[%emt 00:00:01] [%clk 00:02:58]} 7. O-O {[%emt
00:00:02] [%clk 00:02:48]} Be7 {[%clk 00:02:59]} 8. Re1 {[%emt 00:00:02] [%clk
00:02:48]} Nf6 {[%emt 00:00:06] [%clk 00:02:55]} 9. d4 {[%emt 00:00:09] [%clk
00:02:42]} cxd4 {[%emt 00:00:17] [%clk 00:02:40]} 10. Nxd4 {[%emt 00:00:04]
[%clk 00:02:40]} Qc7 {[%emt 00:00:07] [%clk 00:02:34]} 11. a3 {[%emt 00:00:07]
[%clk 00:02:36]} O-O {[%emt 00:00:02] [%clk 00:02:33]} 12. h3 {[%emt 00:00:02]
[%clk 00:02:37]} Nbd7 {[%emt 00:00:01] [%clk 00:02:34]} 13. Qe2 {[%emt 00:00:22]
[%clk 00:02:17]} Rfe8 {[%emt 00:00:02] [%clk 00:02:34]} 14. f4 {[%emt 00:00:27]
[%clk 00:01:52]} Bf8 {[%emt 00:00:06] [%clk 00:02:30]} 15. Kh2 {[%emt 00:00:04]
[%clk 00:01:50]} e5 {[%emt 00:00:11] [%clk 00:02:20]} 16. fxe5 {[%emt 00:00:06]
[%clk 00:01:47]} Rxe5 {[%emt 00:00:06] [%clk 00:02:16]} 17. Bf4 {[%emt 00:00:06]
[%clk 00:01:43]} Ree8 {[%emt 00:00:02] [%clk 00:02:16]} 18. Rad1 {[%emt
00:00:18] [%clk 00:01:27]} Rac8 {[%emt 00:00:02] [%clk 00:02:16]} 19. Qf2 {[%emt
00:00:15] [%clk 00:01:14]} Ne5 {[%emt 00:00:06] [%clk 00:02:12]} 20. Nd5 {[%emt
00:00:05] [%clk 00:01:12]} Bxd5 {[%emt 00:00:05] [%clk 00:02:09]} 21. exd5
{[%emt 00:00:01] [%clk 00:01:12]} Neg4+ {[%emt 00:00:06] [%clk 00:02:05]} 22.
hxg4 {[%emt 00:00:32] [%clk 00:00:43]} Nxg4+ {[%emt 00:00:01] [%clk 00:02:06]}
23. Kg1 {[%clk 00:00:44]} Nxf2 {[%emt 00:00:03] [%clk 00:02:05]} 24. Kxf2 {[%emt
00:00:02] [%clk 00:00:44]} g6 {[%emt 00:00:24] [%clk 00:01:42]} 25. c3 {[%emt
00:00:02] [%clk 00:00:45]} Qb6 {[%emt 00:00:09] [%clk 00:01:36]} 26. Kf1 {[%emt
00:00:04] [%clk 00:00:43]} a5 {[%emt 00:00:04] [%clk 00:01:34]} 27. Nc6 {[%clk
00:00:43]} h5 {[%emt 00:00:10] [%clk 00:01:26]} 28. Bf3 {[%emt 00:00:02] [%clk
00:00:43]} b4 {[%emt 00:00:09] [%clk 00:01:20]} 29. axb4 {[%emt 00:00:02] [%clk
00:00:44]} axb4 {[%clk 00:01:21]} 30. Nxb4 {[%emt 00:00:03] [%clk 00:00:43]} Bg7
{[%emt 00:00:05] [%clk 00:01:18]} 31. Nc6 {[%emt 00:00:04] [%clk 00:00:40]} Kh7
{[%emt 00:00:11] [%clk 00:01:09]} 32. Rxe8 {[%emt 00:00:16] [%clk 00:00:27]}
Rxe8 {[%clk 00:01:11]} 33. Rd2 {[%emt 00:00:01] [%clk 00:00:27]} Bh6 {[%emt
00:00:06] [%clk 00:01:07]} 34. Bxh6 {[%emt 00:00:07] [%clk 00:00:22]} Kxh6
{[%emt 00:00:02] [%clk 00:01:08]} 35. Nd4 {[%emt 00:00:02] [%clk 00:00:22]} Qc5
{[%emt 00:00:06] [%clk 00:01:03]} 36. Kg2 {[%emt 00:00:08]} Ra8 {[%clk
00:01:00]} 37. Re2 {[%emt 00:00:11] [%clk 00:00:13]} Qc7 {[%emt 00:00:05] [%clk
00:00:56]} 38. Nc6 {[%emt 00:00:03] [%clk 00:00:13]} Qb6 {[%emt 00:00:11] [%clk
00:00:47]} 39. b4 {[%emt 00:00:02] [%clk 00:00:13]} Ra3 {[%emt 00:00:02] [%clk
00:00:46]} 40. c4 {[%emt 00:00:01] [%clk 00:00:14]} Rc3 {[%emt 00:00:02] [%clk
00:00:46]} 41. Re4 {[%emt 00:00:09] [%clk 00:00:07]} Rc2+ {[%emt 00:00:03] [%clk
00:00:45]} 42. Re2 {[%emt 00:00:02] [%clk 00:00:06]} Rxc4 {[%emt 00:00:03] [%clk
00:00:45]} 43. Kh3 {[%emt 00:00:02] [%clk 00:00:05]} Rc3 {[%emt 00:00:03] [%clk
00:00:45]} 44. Be4 {[%emt 00:00:02] [%clk 00:00:04]} Qg1 {[%emt 00:00:03] [%clk
00:00:43]} 45. Rg2 {[%emt 00:00:05] [%clk 00:00:03]} Qh1+ {[%emt 00:00:02] [%clk
00:00:43]} 46. Rh2 {[%emt 00:00:01] [%clk 00:00:04]} Qxe4 {[%emt 00:00:01] [%clk
00:00:44]} 0-1

[Site "Europe Echecs"]

[Event "Championnat d'Europe de Blitz"]
[Date "2024.12.09"]
[White "Herega, Nejc"]
[Black "Saraci, Nderim"]
[WhiteElo "2249"]
[BlackElo "2431"]
[Round "8.40"]
[Result "1/2-1/2"]
[TimeControl "180+2"]

1. d4 {[%clk 00:03:03]} Nf6 {[%emt 00:00:02] [%clk 00:03:03]} 2. c4 {[%emt
00:00:02] [%clk 00:03:03]} e6 {[%emt 00:00:06] [%clk 00:02:59]} 3. g3 {[%emt
00:00:02] [%clk 00:03:03]} c5 {[%emt 00:00:04] [%clk 00:02:57]} 4. Nf3 {[%emt
00:00:01] [%clk 00:03:03]} cxd4 {[%emt 00:00:03] [%clk 00:02:56]} 5. Nxd4 {[%emt
00:00:02] [%clk 00:03:03]} a6 {[%emt 00:00:02] [%clk 00:02:57]} 6. Bg2 {[%emt
00:00:05] [%clk 00:02:59]} Be7 {[%emt 00:00:02] [%clk 00:02:57]} 7. O-O {[%emt
00:00:04] [%clk 00:02:57]} d6 {[%emt 00:00:03] [%clk 00:02:58]} 8. Nc3 {[%emt
00:00:02] [%clk 00:02:57]} Qc7 {[%emt 00:00:02] [%clk 00:02:57]} 9. Qd3 {[%emt
00:00:14] [%clk 00:02:44]} Nbd7 {[%emt 00:00:02] [%clk 00:02:57]} 10. b3 {[%emt
00:00:04] [%clk 00:02:43]} O-O {[%emt 00:00:06] [%clk 00:02:52]} 11. Bb2 {[%emt
00:00:02] [%clk 00:02:44]} Re8 {[%emt 00:00:09] [%clk 00:02:45]} 12. Rac1 {[%emt
00:00:01] [%clk 00:02:44]} Rb8 {[%emt 00:00:05] [%clk 00:02:42]} 13. Rfd1 {[%emt
00:00:08] [%clk 00:02:37]} Ne5 {[%emt 00:00:04] [%clk 00:02:40]} 14. Qd2 {[%emt
00:00:05] [%clk 00:02:34]} Bd7 {[%emt 00:00:15] [%clk 00:02:28]} 15. h3 {[%emt
00:00:05] [%clk 00:02:31]} Rbc8 {[%emt 00:00:12] [%clk 00:02:18]} 16. Kh2 {[%emt
00:00:05] [%clk 00:02:28]} Qb8 {[%emt 00:00:03] [%clk 00:02:17]} 17. a4 {[%emt
00:00:15] [%clk 00:02:15]} b6 {[%emt 00:00:12] [%clk 00:02:07]} 18. Ba3 {[%emt
00:00:06] [%clk 00:02:11]} h6 {[%emt 00:00:30] [%clk 00:01:40]} 19. Nf3 {[%emt
00:00:09] [%clk 00:02:05]} Nxf3+ {[%emt 00:00:29] [%clk 00:01:12]} 20. Bxf3
{[%emt 00:00:02] [%clk 00:02:05]} b5 {[%emt 00:00:09] [%clk 00:01:05]} 21. axb5
{[%emt 00:00:36] [%clk 00:01:31]} axb5 {[%emt 00:00:01] [%clk 00:01:06]} 22.
Bxd6 {[%emt 00:00:05] [%clk 00:01:28]} Bxd6 {[%emt 00:00:03] [%clk 00:01:05]}
23. Qxd6 {[%emt 00:00:01] [%clk 00:01:29]} Qxd6 {[%emt 00:00:13] [%clk
00:00:54]} 24. Rxd6 {[%emt 00:00:02] [%clk 00:01:30]} bxc4 {[%emt 00:00:01]
[%clk 00:00:54]} 25. bxc4 {[%emt 00:00:09] [%clk 00:01:22]} Rxc4 {[%emt
00:00:07] [%clk 00:00:49]} 26. Na2 {[%emt 00:00:03] [%clk 00:01:21]} Ra4 {[%emt
00:00:04] [%clk 00:00:47]} 27. Nc3 {[%emt 00:00:05] [%clk 00:01:19]} Ra7 {[%emt
00:00:03] [%clk 00:00:46]} 28. Rcd1 {[%emt 00:00:06] [%clk 00:01:15]} Kf8 {[%emt
00:00:04] [%clk 00:00:44]} 29. Ne4 {[%emt 00:00:14] [%clk 00:01:02]} Nxe4 {[%emt
00:00:14] [%clk 00:00:32]} 30. Bxe4 {[%emt 00:00:02] [%clk 00:01:02]} Ke7 {[%emt
00:00:04] [%clk 00:00:31]} 31. R6d2 {[%emt 00:00:03] [%clk 00:01:01]} Rb8 {[%emt
00:00:03] [%clk 00:00:30]} 32. Bf3 {[%emt 00:00:03] [%clk 00:01:00]} Rb4 {[%emt
00:00:02] [%clk 00:00:30]} 33. Rd4 {[%emt 00:00:05] [%clk 00:00:57]} Rb6 {[%emt
00:00:02] [%clk 00:00:30]} 34. Kg2 {[%emt 00:00:02] [%clk 00:00:57]} Rc7 {[%emt
00:00:02] [%clk 00:00:31]} 35. R4d2 {[%emt 00:00:04] [%clk 00:00:55]} f5 {[%emt
00:00:02] [%clk 00:00:30]} 36. e4 {[%emt 00:00:04] [%clk 00:00:53]} g6 {[%emt
00:00:04] [%clk 00:00:28]} 37. h4 {[%emt 00:00:07] [%clk 00:00:47]} Ba4 {[%emt
00:00:03] [%clk 00:00:27]} 38. Ra1 {[%emt 00:00:03] [%clk 00:00:47]} Bd7 {[%emt
00:00:05] [%clk 00:00:23]} 39. Re1 {[%emt 00:00:08] [%clk 00:00:41]} Kf6 {[%emt
00:00:05] [%clk 00:00:20]} 40. Red1 {[%emt 00:00:04] [%clk 00:00:40]} Bc8 {[%emt
00:00:07] [%clk 00:00:16]} 41. Rd8 {[%emt 00:00:08] [%clk 00:00:33]} g5 {[%emt
00:00:05] [%clk 00:00:13]} 42. hxg5+ {[%emt 00:00:03] [%clk 00:00:33]} hxg5
{[%clk 00:00:14]} 43. exf5 {[%emt 00:00:07] [%clk 00:00:28]} exf5 {[%emt
00:00:01] [%clk 00:00:14]} 44. R8d6+ {[%emt 00:00:04] [%clk 00:00:26]} Rxd6
{[%emt 00:00:02] [%clk 00:00:15]} 45. Rxd6+ {[%emt 00:00:01] [%clk 00:00:27]}
Ke5 {[%emt 00:00:03] [%clk 00:00:14]} 46. Rc6 {[%emt 00:00:03] [%clk 00:00:26]}
Rxc6 {[%emt 00:00:06] [%clk 00:00:10]} 47. Bxc6 {[%emt 00:00:01] [%clk
00:00:27]} 1/2-1/2

[Site "Europe Echecs"]

[Event "Championnat d'Europe de Blitz"]
[Date "2024.12.09"]
[White "Dragicevic, Drazen"]
[Black "Grigoriants, Sergey"]
[WhiteElo "2332"]
[BlackElo "2542"]
[Round "8.41"]
[Result "0-1"]
[TimeControl "180+2"]

1. Nf3 {[%emt 00:00:02] [%clk 00:03:02]} d5 {[%emt 00:00:02] [%clk 00:03:02]} 2.
e3 {[%clk 00:03:03]} Nf6 {[%emt 00:00:04] [%clk 00:02:59]} 3. c4 {[%emt
00:00:01] [%clk 00:03:04]} e6 {[%emt 00:00:07] [%clk 00:02:55]} 4. b3 {[%emt
00:00:06] [%clk 00:03:00]} Bd6 {[%emt 00:00:11] [%clk 00:02:46]} 5. Bb2 {[%emt
00:00:02] [%clk 00:03:00]} b6 {[%emt 00:00:07] [%clk 00:02:41]} 6. Be2 {[%emt
00:00:02] [%clk 00:03:00]} Bb7 {[%emt 00:00:03] [%clk 00:02:40]} 7. O-O {[%emt
00:00:03] [%clk 00:02:58]} O-O {[%emt 00:00:06] [%clk 00:02:37]} 8. Nc3 {[%emt
00:00:02] [%clk 00:02:58]} a6 {[%emt 00:00:12] [%clk 00:02:27]} 9. Qc2 {[%emt
00:00:16] [%clk 00:02:44]} Nbd7 {[%emt 00:00:08] [%clk 00:02:21]} 10. cxd5
{[%emt 00:00:16] [%clk 00:02:29]} exd5 {[%emt 00:00:02] [%clk 00:02:22]} 11.
Rfd1 {[%emt 00:00:17] [%clk 00:02:14]} Re8 {[%emt 00:00:02] [%clk 00:02:21]} 12.
Bf1 {[%emt 00:00:20] [%clk 00:01:56]} Nf8 {[%emt 00:01:00] [%clk 00:01:23]} 13.
Ne2 {[%emt 00:00:04] [%clk 00:01:54]} Ng6 {[%emt 00:00:08] [%clk 00:01:17]} 14.
Ng3 {[%emt 00:00:06] [%clk 00:01:50]} Rc8 {[%emt 00:00:11] [%clk 00:01:08]} 15.
Rac1 {[%emt 00:00:20] [%clk 00:01:32]} c5 {[%emt 00:00:13] [%clk 00:00:57]} 16.
Qf5 {[%emt 00:00:13] [%clk 00:01:21]} d4 {[%emt 00:00:25] [%clk 00:00:34]} 17.
exd4 {[%emt 00:00:11] [%clk 00:01:12]} Ne7 {[%emt 00:00:19] [%clk 00:00:17]} 18.
Qb1 {[%emt 00:00:09] [%clk 00:01:05]} Bxf3 {[%emt 00:00:01] [%clk 00:00:17]} 19.
gxf3 {[%clk 00:01:07]} cxd4 {[%emt 00:00:11] [%clk 00:00:08]} 20. Bxd4 {[%emt
00:00:02] [%clk 00:01:07]} Bxg3 {[%emt 00:00:04] [%clk 00:00:07]} 21. Rxc8
{[%emt 00:00:08] [%clk 00:01:00]} Nxc8 {[%emt 00:00:03] [%clk 00:00:06]} 22.
Bxf6 {[%emt 00:00:01] [%clk 00:01:01]} Bxf2+ {[%clk 00:00:07]} 23. Kxf2 {[%emt
00:00:02] [%clk 00:01:01]} Qxf6 {[%clk 00:00:08]} 24. d4 {[%emt 00:00:29] [%clk
00:00:34]} Nd6 {[%clk 00:00:09]} 25. Kg1 {[%emt 00:00:08] [%clk 00:00:29]} g6
{[%clk 00:00:11]} 26. Bxa6 {[%emt 00:00:03] [%clk 00:00:27]} Nf5 {[%emt
00:00:02] [%clk 00:00:11]} 27. Bc4 {[%emt 00:00:04] [%clk 00:00:26]} Kg7 {[%emt
00:00:02] [%clk 00:00:11]} 28. d5 {[%emt 00:00:02] [%clk 00:00:26]} Ne3 {[%emt
00:00:02] [%clk 00:00:11]} 29. Rd2 {[%emt 00:00:05] [%clk 00:00:23]} Qxf3 {[%emt
00:00:02] [%clk 00:00:11]} 30. d6 {[%emt 00:00:16] [%clk 00:00:09]} Re4 {[%emt
00:00:01] [%clk 00:00:12]} 31. Qxe4 {[%emt 00:00:04] [%clk 00:00:07]} Qxe4
{[%emt 00:00:01] [%clk 00:00:13]} 32. d7 {[%clk 00:00:09]} Qg4+ {[%emt 00:00:04]
[%clk 00:00:11]} 33. Kf2 {[%emt 00:00:02] [%clk 00:00:09]} Qf4+ {[%emt 00:00:04]
[%clk 00:00:08]} 34. Ke2 {[%emt 00:00:01] [%clk 00:00:09]} Nxc4 {[%emt 00:00:03]
[%clk 00:00:08]} 35. bxc4 {[%emt 00:00:02] [%clk 00:00:09]} Qxc4+ {[%emt
00:00:01] [%clk 00:00:08]} 36. Kd1 {[%emt 00:00:06] [%clk 00:00:06]} Qa4+ {[%emt
00:00:04] [%clk 00:00:07]} 37. Ke1 {[%emt 00:00:02] [%clk 00:00:05]} Qh4+ {[%emt
00:00:02] [%clk 00:00:07]} 38. Kd1 {[%clk 00:00:06]} Qd8 {[%clk 00:00:08]} 39.
Kc1 {[%clk 00:00:07]} Kf6 {[%clk 00:00:09]} 40. Kc2 {[%emt 00:00:02] [%clk
00:00:08]} Ke6 {[%clk 00:00:11]} 41. Kc3 {[%emt 00:00:02] [%clk 00:00:09]} Qxd7
{[%emt 00:00:01] [%clk 00:00:11]}

[Site "Europe Echecs"]

[Event "Championnat d'Europe de Blitz"]
[Date "2024.12.09"]
[White "Schneider, Ilja"]
[Black "Gaponenko, Inna"]
[WhiteElo "2414"]
[BlackElo "2343"]
[Round "8.42"]
[Result "1-0"]
[TimeControl "180+2"]

1. e4 {[%emt 00:00:02] [%clk 00:03:02]} g6 {[%clk 00:03:03]} 2. d4 {[%emt
00:00:01] [%clk 00:03:03]} Bg7 {[%clk 00:03:05]} 3. Nc3 {[%emt 00:00:01] [%clk
00:03:05]} d6 {[%clk 00:03:06]} 4. Nf3 {[%clk 00:03:06]} Nf6 {[%clk 00:03:07]}
5. Be2 {[%clk 00:03:07]} O-O {[%clk 00:03:08]} 6. O-O {[%emt 00:00:01] [%clk
00:03:08]} Bg4 {[%clk 00:03:09]} 7. h3 {[%emt 00:00:01] [%clk 00:03:09]} Bxf3
{[%clk 00:03:10]} 8. Bxf3 {[%emt 00:00:01] [%clk 00:03:10]} Nc6 {[%emt 00:00:01]
[%clk 00:03:12]} 9. Be3 {[%emt 00:00:21] [%clk 00:02:51]} Re8 {[%clk 00:03:13]}
10. Re1 {[%emt 00:00:06] [%clk 00:02:47]} e5 {[%emt 00:00:06] [%clk 00:03:09]}
11. d5 {[%emt 00:00:02] [%clk 00:02:47]} Nd4 {[%clk 00:03:10]} 12. Be2 {[%emt
00:00:09] [%clk 00:02:41]} c6 {[%emt 00:00:21] [%clk 00:02:51]} 13. dxc6 {[%emt
00:00:05] [%clk 00:02:37]} bxc6 {[%emt 00:00:03] [%clk 00:02:50]} 14. Bf1 {[%emt
00:00:07] [%clk 00:02:33]} Rb8 {[%emt 00:00:09] [%clk 00:02:43]} 15. b3 {[%emt
00:00:26] [%clk 00:02:09]} d5 {[%emt 00:00:10] [%clk 00:02:34]} 16. exd5 {[%emt
00:00:05] [%clk 00:02:06]} Nxd5 {[%emt 00:00:07] [%clk 00:02:29]} 17. Nxd5
{[%emt 00:00:22] [%clk 00:01:46]} cxd5 {[%emt 00:00:05] [%clk 00:02:26]} 18.
Bxd4 {[%emt 00:00:15] [%clk 00:01:33]} exd4 {[%clk 00:02:27]} 19. Rxe8+ {[%emt
00:00:01] [%clk 00:01:34]} Qxe8 {[%emt 00:00:01] [%clk 00:02:28]} 20. Bd3 {[%emt
00:00:02] [%clk 00:01:34]} Qc6 {[%emt 00:00:24] [%clk 00:02:06]} 21. Qd2 {[%emt
00:00:38] [%clk 00:00:58]} Re8 {[%emt 00:00:01] [%clk 00:02:06]} 22. Rf1 {[%emt
00:00:19] [%clk 00:00:42]} Qc5 {[%emt 00:00:54] [%clk 00:01:15]} 23. a4 {[%emt
00:00:09] [%clk 00:00:35]} Bf6 {[%emt 00:00:10] [%clk 00:01:06]} 24. Qf4 {[%emt
00:00:06] [%clk 00:00:31]} Kg7 {[%emt 00:00:02] [%clk 00:01:07]} 25. h4 {[%emt
00:00:05] [%clk 00:00:29]} h5 {[%emt 00:00:05] [%clk 00:01:04]} 26. g3 {[%emt
00:00:02] [%clk 00:00:29]} Qc3 {[%emt 00:00:01] [%clk 00:01:05]} 27. Qd6 {[%emt
00:00:03] [%clk 00:00:28]} Qa5 {[%emt 00:00:08] [%clk 00:00:59]} 28. Bb5 {[%emt
00:00:08] [%clk 00:00:22]} Re1 {[%emt 00:00:11] [%clk 00:00:50]} 29. Qxd5 {[%emt
00:00:05] [%clk 00:00:19]} Re5 {[%emt 00:00:33] [%clk 00:00:20]} 30. Qf3 {[%emt
00:00:03] [%clk 00:00:17]} Qc3 {[%emt 00:00:05] [%clk 00:00:17]} 31. Bd3 {[%clk
00:00:18]} Re1 {[%emt 00:00:06] [%clk 00:00:13]} 32. Rxe1 {[%emt 00:00:01] [%clk
00:00:19]} Qxe1+ {[%emt 00:00:01] [%clk 00:00:13]} 33. Kg2 {[%emt 00:00:01]
[%clk 00:00:20]} a5 {[%emt 00:00:03] [%clk 00:00:12]} 34. Qb7 {[%emt 00:00:01]
[%clk 00:00:20]} Bd8 {[%emt 00:00:09] [%clk 00:00:06]} 35. Qd5 {[%emt 00:00:05]
[%clk 00:00:17]} Bb6 {[%emt 00:00:06] [%clk 00:03:02]} 1-0

[Site "Europe Echecs"]